{"text_format":"2","workbook":"xlsx","n_sheets":4,"sheets":["Busse","Infrastruktur","Vorlage für Skizze","Flottengröße und Beschaffung"],"not_rendered":{"charts":0,"images":1,"macros":0,"external_links":0,"defined_names":18,"comments":0,"pivot_tables":0},"unopened":[],"bounds":{"document_bytes":16777216,"sheet_cells":100000,"run_cost":"one","rows_first":2000,"rows_last":500,"rows_between":2000,"halvings":0,"cell_chars":16384,"cell_head_chars":4096},"cells_cut":0,"cells_raw":0,"read":"whole","date_system":"1900"}

{"sheet":"Busse","index":0,"n_rows":61,"n_cols":55,"rows_kept":61,"cut":false,"hidden":false,"merged":[[3,0,3,2],[2,0,2,2],[4,0,4,2],[10,0,10,16],[12,7,12,8],[5,0,5,2],[6,0,6,2],[7,0,7,2],[8,0,8,2]]}
["Ermittlung der förderfähigen Ausgaben (EfA) für Busse",{"$nulls":40},"ja","nein"]
[]
["Antragsteller ist vorsteuerabzugsberechtigt [Auswahlbox]:"]
["Aktuelle Flottengröße (Anzahl Busse aller Antriebsarten):"]
["Anzahl Busse mit emissionsfreien Antrieben (in Bestandsflotte):"]
["Anzahl geförderter Busse mit emissionsfreien Antrieben (in Bestandsflotte):"]
["Anzahl noch nicht gelieferter emissionsfreier Busse für die aber bereits eine Förderzusage vorliegt:"]
["Ist grenzüberschreitender Verkehr geplant?"]
["Überwiegender Einsatzkontext gemäß Aufruf:"]
["Hinweise:"]
["1. Grün unterlegte Felder sind Eingabefelder.\n2. Beantworten Sie zuerst die oberen sieben Punkte, bevor die untere Tabelle zur gewünschten Busförderung ausgefüllt wird.\n3. Die Registerkarte 'Vorlage für Skizze' ist eine Hilfe für die Eingaben im easy-Online Formular.\n4. Füllen Sie bitte auch die Registerkarte \"Flottengröße und Beschaffung\" aus.\n5. Speichern Sie das ausgefüllte Arbeitsblatt als PDF und fügen Sie es der Skizze bei (Bei easy-Online unter \"Endfassung einreichen\"). Schicken Sie die Excel Datei außerdem inklusive der easy-Online-Kennung an \"ptj-evi-busse@fz-juelich.de\"."]
[]
[{"$nulls":6},"Nur für \"1.1. Batterie\" ","Nur für \"1.2. Brennstoffzelle\" auszufüllen",null,"Nur für \"1.3 Biomethan\"",{"$nulls":31},"Fehler",null,null,"Netto"]
["Position","Fahrzeugklasse und Länge Bus [Auswahlbox]","Antriebssystem nach Aufruf Kapitel 2 [Auswahlbox]","Neufahrzeug oder Umrüstung [Auswahlbox]",{"$f":"IF(D3=\"nein\",\"Bruttopreis pro\nBus bzw. Umrüstung\",IF(D3=\"ja\",\"Nettopreis pro\nBus bzw. Umrüstung\",\"Bitte wählen sie aus, ob sie zum Vorsteuerabzug berechtigt sind!\"))","v":"Bitte wählen sie aus, ob sie zum Vorsteuerabzug berechtigt sind!"},"Durchschnittliche Laufleistung in km/Jahr pro Bus","Ladestrategie [Auswahlbox]","Anteil erneuerbarer Wasserstoff am Flottenverbrauch in %","Brennstoffzelle nur als Range-Extender? [Auswahlbox]","Biomethanbus mit 100 % elektrifiziertem Antrieb  und möglicher Nachladung? [Auswahlbox]","Busklasse [Auswahlbox]","Welchen SORT wird der Bus fahren? [Auswahlbox]","Neufahrzeug als Substitution von Dieselbus? [Auswahlbox]",{"$f":"IF(D3=\"nein\",\"Bruttopreis Referenzfahrzeug\",IF(D3=\"ja\",\"Nettopreis Referenzfahrzeug\",\"Bitte wählen sie aus, ob sie zum Vorsteuerabzug berechtigt sind!\"))","v":"Bitte wählen sie aus, ob sie zum Vorsteuerabzug berechtigt sind!"},{"$f":"IF(D3=\"nein\",\"Förderfähige Ausgaben pro Fahrzeug (brutto)\",IF(D3=\"ja\",\"Förderfähige Ausgaben pro Fahrzeug (netto)\",\"Bitte wählen sie aus, ob sie zum Vorsteuerabzug berechtigt sind!\"))","v":"Bitte wählen sie aus, ob sie zum Vorsteuerabzug berechtigt sind!"},"Anzahl zu beschaffender Fahrzeuge des Typs","Förderfähige Ausgaben ",null,"Technologiepfad","Einsatzkontext","Kategorie","Fördereffizienz (Punkte)","Klimaschutzbeitrag","Förderfähige Ausgaben Bus in Euro","Förderfähige Ausgaben Infrastruktur in Euro","Aktuelle Flottengröße","Anzahl Busse mit emissionsfreien Antrieben:","Anzahl geförderter Busse mit emissionsfreien Antrieben:","Anzahl noch nicht beschaffter emissionsfreier Busse für die aber bereits eine Förderzusage vorliegt:","Ist grenzüberschreitender Verkehr geplant?","Anzahl beantragter Busse in Skizze","Davon als Substitution für Dieselbus","Eingesparte CO2 Emissionen/Jahr [kg]",null,"Platzkapazität","CO2 Emissionen  Referenzfahrzeug\n[kg CO2/km]","Verbrauch Wasserstoff (kg H2/km)","CO2 Emissionen alternativer Antrieb (kg CO2/km)","Eingesparte CO2 Emissionen [kg CO2/km]","Eingesparte CO2 Emissionen [kg]","Beihilfe in Euro","1.1. Batterie",null,null,"Diesel-referenz","Batterie","Brennstoffzelle","Gas","Batterie (Umrüstung)","Brennstoffzelle (Umrüstung)",null,"Platzkapazität","CO2 kg/km von Referenzfahrzeug",null,"Hilfstabelle Substitution"]
[1,{"$nulls":12},{"$f":"IF(OR($D$3=\"\",$D$4=\"\",$D$6=\"\",$D$7=\"\",B15=\"\",D15=\"\"),\"\",IF(D15=$AP$19,0,IF($D$3=$AP$1,IF(B15=$AP$25,$AS$15,IF(B15=$AP$26,$AS$16,IF(B15=$AP$27,$AS$17,$AS$18))),IF(B15=$AP$25,$AS$23,IF(B15=$AP$26,$AS$24,IF(B15=$AP$27,$AS$25,$AS$26))))))","v":""},{"$f":"IF(OR(N15=\"\",C15=\"\",E15=\"\"),\"\",IF($D$3=$AP$1,IF(D15=$AP$19,IF(OR(C15=$AP$14,AND(C15=$AP$16,J15=$AP$1)),IF(B15=$AP$25,IF(E15<$AW$15,E15,$AW$15),IF(B15=$AP$26,IF(E15<$AW$16,E15,$AW$16),IF(B15=$AP$27,IF(E15<$AW$17,E15,$AW$17),IF(E15<$AW$18,E15,$AW$18)))),IF(C15=$AP$16,0,IF(B15=$AP$25,IF(E15<$AX$15,E15,$AX$15),IF(B15=$AP$26,IF(E15<$AX$16,E15,$AX$16),IF(B15=$AP$27,IF(E15<$AX$17,E15,$AX$17),IF(E15<$AX$18,E15,$AX$18)))))),IF(C15=$AP$14,IF(B15=$AP$25,IF(E15<$AT$15,E15-$AS$15,$AT$15-$AS$15),IF(B15=$AP$26,IF(E15<$AT$16,E15-$AS$16,$AT$16-$AS$16),IF(B15=$AP$27,IF(E15<$AT$17,E15-$AS$17,$AT$17-$AS$17),IF(E15<$AT$18,E15-$AS$18,$AT$18-$AS$18)))),IF(C15=$AP$16,IF(B15=$AP$25,IF(E15<$AV$15,E15-$AS$15,$AV$15-$AS$15),IF(B15=$AP$26,IF(E15<$AV$16,E15-$AS$16,$AV$16-$AS$16),IF(B15=$AP$27,IF(E15<$AV$17,E15-$AS$17,$AV$17-$AS$17),IF(E15<$AV$18,E15-$AS$18,$AV$18-$AS$18)))),IF(B15=$AP$25,IF(E15<$AU$15,E15-$AS$15,$AU$15-$AS$15),IF(B15=$AP$26,IF(E15<$AU$16,E15-$AS$16,$AU$16-$AS$16),IF(B15=$AP$27,IF(E15<$AU$17,E15-$AS$17,$AU$17-$AS$17),IF(E15<$AU$18,E15-$AS$18,$AU$18-$AS$18))))))),IF(D15=$AP$19,IF(OR(C15=$AP$14,AND(C15=$AP$16,J15=$AP$1)),IF(B15=$AP$25,IF(E15<$AW$23,E15,$AW$23),IF(B15=$AP$26,IF(E15<$AW$24,E15,$AW$24),IF(B15=$AP$27,IF(E15<$AW$25,E15,$AW$25),IF(E15<$AW$26,E15,$AW$26)))),IF(C15=$AP$16,0,IF(B15=$AP$25,IF(E15<$AX$23,E15,$AX$23),IF(B15=$AP$26,IF(E15<$AX$24,E15,$AX$24),IF(B15=$AP$27,IF(E15<$AX$25,E15,$AX$25),IF(E15<$AX$26,E15,$AX$26)))))),IF(C15=$AP$14,IF(B15=$AP$25,IF(E15<$AT$23,E15-$AS$23,$AT$23-$AS$23),IF(B15=$AP$26,IF(E15<$AT$24,E15-$AS$24,$AT$24-$AS$24),IF(B15=$AP$27,IF(E15<$AT$25,E15-$AS$25,$AT$25-$AS$25),IF(E15<$AT$26,E15-$AS$26,$AT$26-$AS$26)))),IF(C15=$AP$16,IF(B15=$AP$25,IF(E15<$AV$23,E15-$AS$23,$AV$23-$AS$23),IF(B15=$AP$26,IF(E15<$AV$24,E15-$AS$24,$AV$24-$AS$24),IF(B15=$AP$27,IF(E15<$AV$25,E15-$AS$25,$AV$25-$AS$25),IF(E15<$AV$26,E15-$AS$26,$AV$26-$AS$26)))),IF(B15=$AP$25,IF(E15<$AU$23,E15-$AS$23,$AU$23-$AS$23),IF(B15=$AP$26,IF(E15<$AU$24,E15-$AS$24,$AU$24-$AS$24),IF(B15=$AP$27,IF(E15<$AU$25,E15-$AS$25,$AU$25-$AS$25),IF(E15<$AU$26,E15-$AS$26,$AU$26-$AS$26)))))))))","v":""},null,{"$f":"IF(O15=\"\",\"\",IF(O15<0,0,O15*P15))","v":""},null,{"$f":"IF(AND(T24,NOT(T25),NOT(T26)),AP14,IF(AND(NOT(T24),T25,NOT(T26)),AP15,IF(AND(NOT(T24),NOT(T25),T26),AP16,IF(AND(T24,T25,NOT(T26)),AP17,AP13))))","v":"Fehler"},{"$f":"D9","v":0},"Noch in Klärung","muss mit FQ aus Profi errechnet werden",{"$f":"F15*P15*AI15*AM15+F16*P16*AI16*AM16+F17*P17*AI17*AM17+F18*P18*AI18*AM18+F19*P19*AI19*AM19+F20*P20*AI20*AM20+F21*P21*AI21*AM21+F22*P22*AI22*AM22+F23*P23*AI23*AM23+F24*P24*AI24*AM24+F25*P25*AI25*AM25+F26*P26*AI26*AM26+F27*P27*AI27*AM27+F28*P28*AI28*AM28+F29*P29*AI29*AM29+F30*P30*AI30*AM30+F31*P31*AI31*AM31+F32*P32*AI32*AM32+F33*P33*AI33*AM33+F34*P34*AI34*AM34","v":0},{"$f":"Q35","v":0},{"$f":"Infrastruktur!F17","v":""},{"$f":"D4","v":0},{"$f":"D5","v":0},{"$f":"D6","v":0},{"$f":"D7","v":0},{"$f":"D8","v":0},{"$f":"SUM(P15:P34)","v":0},{"$f":"SUM(BC15:BC34)","v":0},{"$f":"AN35","v":0},null,{"$f":"IF(B15=$AP$25,$AZ$15,IF(B15=$AP$26,$AZ$16,IF(B15=$AP$27,$AZ$17,IF(B15=$AP$28,$AZ$18,0))))","v":0},{"$f":"IF(B15=$AP$25,$BA$15,IF(B15=$AP$26,$BA$16,IF(B15=$AP$27,$BA$17,IF(B15=$AP$28,$BA$18,\"\"))))","v":""},{"$f":"IF(C15=$AP$15,IF(I15=$AP$1,IF(B15=$AP$25,$AT$30,IF(B15=$AP$26,$AT$31,IF(B15=$AP$27,$AT$32,$AT$33))),IF(B15=$AP$25,$AS$30,IF(B15=$AP$26,$AS$31,IF(B15=$AP$27,$AS$32,$AS$33)))),0)","v":0},{"$f":"AK15*10.7*(100-H15)/100","v":0},{"$f":"IF(AJ15=\"\",0,IF((AJ15-AL15)>0,AJ15-AL15,0))","v":0},{"$f":"AM15*P15*F15","v":0},{"$f":"IF(C15=\"\",0,IF(C15=$AP$16,Q15*0.4,Q15*0.8))","v":0},"1.2. Brennstoffzelle",null,"bis 8 m",120000,270000,340000,160000,100000,170000,"bis 8 m",30,0.4,null,{"$f":"IF(M15=$AP$1,P15,0)","v":0}]
[2,{"$nulls":12},"","",null,{"$f":"IF(O16=\"\",\"\",IF(O16<0,0,O16*P16))","v":""},{"$nulls":17},0,"",0,0,{"$f":"IF(AJ16=\"\",0,IF((AJ16-AL16)>0,AJ16-AL16,0))","v":0},0,0,"1.3. Biomethan",null,"8-10,6 m",220000,450000,550000,240000,230000,220000,"8-10,6 m",60,0.64100000000000001,null,{"$f":"IF(M16=$AP$1,P16,0)","v":0}]
[3,{"$nulls":12},"","",null,"",{"$nulls":17},0,"",0,0,{"$f":"IF(AJ17=\"\",0,IF((AJ17-AL17)>0,AJ17-AL17,0))","v":0},0,0,"Technologieübergreifend",null,"10,6-16 m",230000,570000,590000,250000,340000,360000,"10,6-16 m",80,0.93600000000000005,null,0]
[4,{"$nulls":12},"","",null,"",{"$nulls":17},0,"",0,0,0,0,0,"Neufahrzeug",null,"ab 16m",320000,730000,800000,360000,410000,480000,"ab 16m",120,1.26,null,0]
[5,{"$nulls":12},"","",null,"",{"$nulls":17},0,"",0,0,0,0,0,"Umrüstung",{"$nulls":12},0]
[6,{"$nulls":12},"","",null,"",{"$nulls":4},"Wenn die beantragen Busse keine Dieselbusse ersetzten (keine Substitution), erhöhen diese Busse die Gesamtflotte welche für die Berechnung der oberen Schranke genutzt wird.",{"$nulls":12},0,"",0,0,0,0,0,{"$nulls":13},0]
[7,{"$nulls":12},"","",null,"",{"$nulls":17},0,"",0,0,0,0,0,"SORT I",null,null,"Brutto",{"$nulls":9},0]
[8,{"$nulls":12},"","",null,"",null,"Technologiepfad",null,null,"Kategorie",{"$nulls":12},0,"",0,0,0,0,0,"SORT II",null,null,"Diesel-referenz","Batterie","Brennstoffzelle","Gas","Batterie (Umrüstung)","Brennstoffzelle (Umrüstung)",{"$nulls":4},0]
[9,{"$nulls":12},"","",null,"",null,"Antrag entält",null,null,"Bedigung 1","In Klärung ob selbstgezahlte Busse gezählt werden",{"$nulls":11},0,"",0,0,0,0,0,"SORT III",null,"bis 8 m",{"$f":"AS15*1.19","v":142800},{"$f":"AT15*1.19","v":321300},404600,190400,119000,202300,{"$nulls":4},0]
[10,{"$nulls":12},"","",null,"",null,"Batterie",{"$f":"COUNTIF(C15:C34,\"*\"&AP14&\"*\")>0","v":false},null,"Bedigung 2","In Klärung ob selbstgezahlte Busse gezählt werden",{"$nulls":11},0,"",0,0,0,0,0,null,null,"8-10,6 m",{"$f":"AS16*1.19","v":261800},535500,654500,285600,273700,{"$f":"AX16*1.19","v":261800},{"$nulls":4},0]
[11,{"$nulls":12},"","",null,"",null,"Brennstoffzelle",{"$f":"COUNTIF(C15:C34,\"*\"&AP15&\"*\")>0","v":false},{"$nulls":14},0,"",0,0,0,0,0,"M2",null,"10,6-16 m",{"$f":"AS17*1.19","v":273700},678300,702100,297500,404600,428400,{"$nulls":4},0]
[12,{"$nulls":12},"","",null,{"$f":"IF(O26=\"\",\"\",IF(O26<0,0,O26*P26))","v":""},null,"Gas",{"$f":"COUNTIF(C15:C34,\"*\"&AP16&\"*\")>0","v":false},{"$nulls":14},0,"",0,0,0,0,0,"M3, bis 10,6 m",null,"ab 16m",{"$f":"AS18*1.19","v":380800},868700,952000,428400,487900,571200,{"$nulls":4},0]
[13,{"$nulls":12},"","",null,"",{"$nulls":17},0,"",0,0,0,0,0,"M3, 10,6 - 16 m",{"$nulls":12},0]
[14,{"$nulls":12},"","",null,"",{"$nulls":17},0,"",0,0,0,0,0,"M3, ab 16 m",null,"Wasserstoffverbräuche als kg H2/km",{"$nulls":10},0]
[15,{"$nulls":12},"","",null,"",{"$nulls":17},0,"",0,0,0,0,0,null,null,null,"nur BZ","BZ als Range-Extender",{"$nulls":8},0]
[16,{"$nulls":12},"","",null,"",{"$nulls":17},0,"",0,0,0,0,0,null,null,"bis 8 m",0.05,2.5000000000000001E-2,{"$nulls":8},0]
[17,{"$nulls":12},"","",null,"",{"$nulls":17},0,"",0,0,0,0,0,null,null,"8-10,6 m",0.06,3.5000000000000003E-2,{"$nulls":8},0]
[18,{"$nulls":12},"","",null,"",{"$nulls":17},0,"",0,0,{"$f":"IF(AJ32=\"\",0,IF((AJ32-AL32)>0,AJ32-AL32,0))","v":0},0,0,null,null,"10,6-16 m",0.1,0.05,{"$nulls":8},0]
[19,{"$nulls":12},"","",null,"",{"$nulls":17},0,"",0,0,0,0,0,null,null,"ab 16m",0.13,0.09,{"$nulls":8},0]
[20,{"$nulls":12},"","",null,"",{"$nulls":17},0,"",0,0,0,0,0,"Linienverkehr (national)",{"$nulls":12},0]
["Summe",{"$nulls":15},{"$f":"SUM(Q15:Q34)","v":0},{"$nulls":22},{"$f":"SUM(AN15:AN34)","v":0},{"$f":"SUM(AO15:AO34)","v":0},"Linienverkehr (grenzüberschreitend)"]
[{"$nulls":41},"Linienverkehr (Transit-Fahrten)"]
[{"$nulls":41},"Schülerverkehr (Sonderform des Linienverkehrs)"]
[{"$nulls":41},"Gelegenheitsverkehr (Ausflugsfahrten)"]
[{"$nulls":41},"Gelegenheitsverkehr (Fernreise)"]
[{"$nulls":41},"Gelegenheitsverkehr (Mietomnibus)"]
[{"$nulls":41},"Betrieb auf Flughäfen"]
[{"$nulls":41},"Betrieb auf Werksgelände"]
[]
[{"$nulls":41},"M2"]
[{"$nulls":41},"M3 Klasse 1"]
[{"$nulls":41},"M3 Klasse 2"]
[{"$nulls":41},"M3 Klasse A"]
[{"$nulls":41},"M3 Klasse B"]
[]
[{"$nulls":41},"Depotladung"]
[{"$nulls":41},"Streckenladung"]
[{"$nulls":41},"Depot- und Streckenladung"]
[{"$nulls":41},"Oberleitung"]
[]
[{"$nulls":41},"ÖPNV"]
[{"$nulls":41},"Sonstige Verkehre"]
[]
[{"$nulls":41},"Großes Unternehmen"]
[{"$nulls":41},"Mittleres Unternehmen"]
[{"$nulls":41},"Kleines Unternehmen"]
[{"$nulls":41},"Kommunales Unternehmen"]

{"sheet":"Infrastruktur","index":1,"n_rows":17,"n_cols":9,"rows_kept":17,"cut":false,"hidden":false,"merged":[[3,0,3,6],[17,0,17,5]]}
["Ermittlung der förderfähigen Ausgaben (EfA) für Lade-, Betankungs- und Wartungsinfrastruktur"]
[{"$nulls":8},"Ladeinfrastruktur"]
["Hinweise:",{"$nulls":7},"Betankungsinfrastruktur Wasserstoff"]
["1. Grün unterlegte Felder sind Eingabefelder.\n2. Geben Sie im Reiter \"Busse\" oben an, ob Sie vorsteuerabzugsberechtigt sind.\n3. Speichern Sie das ausgefüllte Arbeitsblatt als PDF und fügen Sie es der Skizze bei (Bei easy-Online unter \"Endfassung einreichen\").\n",{"$nulls":7},"Betankungsinfrastruktur Bio-Methan"]
[{"$nulls":8},"Wartungsinfrastruktur Elektro-Busse"]
["Position","Beschreibung der Infrastruktur","Investitionskategorie [Auswahlbox]",{"$f":"IF(Busse!D3=\"nein\",\"Bruttopreis\",IF(Busse!D3=\"ja\",\"Nettopreis\",\"Bitte wählen Sie aus, ob Sie zum Vorsteuerabzug berechtigt sind!\"))","v":"Bitte wählen Sie aus, ob Sie zum Vorsteuerabzug berechtigt sind!"},"Anzahl zu beschaffender Einheiten dieser Position","Förderfähige Ausgaben ",null,null,"Wartungsinfrastruktur Brennstoffzellen-Busse"]
[1,{"$nulls":4},{"$f":"IF(AND(C7<>\"\",D7>0),E7*D7,\"\")","v":""}]
[2,{"$nulls":4},{"$f":"IF(AND(C8<>\"\",D8>0),E8*D8,\"\")","v":""}]
[3,{"$nulls":4},{"$f":"IF(AND(C9<>\"\",D9>0),E9*D9,\"\")","v":""}]
[4,{"$nulls":4},""]
[5,{"$nulls":4},""]
[6,{"$nulls":4},""]
[7,{"$nulls":4},""]
[8,{"$nulls":4},""]
[9,{"$nulls":4},""]
[10,{"$nulls":4},""]
["Summe",{"$nulls":4},{"$f":"IF(D7>0,SUM(F7:F16),\"\")","v":""}]

{"sheet":"Vorlage für Skizze","index":2,"n_rows":18,"n_cols":12,"rows_kept":18,"cut":false,"hidden":false,"merged":[[1,0,1,7]]}
["Vorlage für Reiter \"Gesamtfinanzierung\" in easy-Online"]
["Hinweise:\n1. Grün unterlegte Felder sind Eingabefelder in easy-Online.\n2. Bei der Förderquote dürfen in easy-Online auch kleinere Werte eingetragen werden"]
[]
[null,"Batterieelektrische Busse"]
[null,"Batterieelektrische Busse [€]","Teilsumme","Förderquote\n(ohne Bonus) [%]","Zuwendung ohne Bonus [€]","KMU-Bonus [€]","Zuwendung mit Bonus [€]"]
[null,{"$f":"SUMIF(Busse!C15:C34,Busse!AP14,Busse!Q15:Q34)","v":0},{"$f":"B6","v":0},80,{"$f":"C6*D6/100","v":0},"-",{"$f":"E6","v":0}]
[]
[null,"Brennstoffzellen-Busse"]
[null,"Brennstoffzellen-Busse [€]","Teilsumme","Förderquote\n(ohne Bonus) [%]","Zuwendung ohne Bonus [€]","KMU-Bonus [€]","Zuwendung mit Bonus [€]"]
[null,{"$f":"SUM(SUMIF(Busse!C15:C34,Busse!AP15,Busse!Q15:Q34),SUMIF(Busse!C15:C34,Busse!AP17,Busse!Q15:Q34))","v":0},{"$f":"B10","v":0},80,{"$f":"C10*D10/100","v":0},"-",{"$f":"E10","v":0}]
[]
[null,"Gas-Busse"]
[null,"Gas-Busse [€]","Teilsumme","Förderquote\n(ohne Bonus) [%]","Zuwendung ohne Bonus [€]","KMU-Bonus [€]","Zuwendung mit Bonus [€]"]
[null,{"$f":"SUMIF(Busse!C15:C34,Busse!AP16,Busse!Q15:Q34)","v":0},{"$f":"B14","v":0},40,{"$f":"C14*D14/100","v":0},"-",{"$f":"E14","v":0}]
[]
[null,"Infrastrukturen"]
[null,"Ladeinfrastruktur [€]","Betankungsinfrastruktur  Wasserstoff [€]","Betankungsinfrastruktur\nBio-Methan [€]","Wartungsinfrastruktur Elektro-Busse [€]","Wartungsinfrastruktur\nBrennstoffzellen-Busse [€]","Teilsumme","Förderquote\n(ohne Bonus) [%]","Zuwendung ohne Bonus [€]","KMU-Bonus [%]","KMU-Bonus [€]","Zuwendung mit Bonus [€]"]
[null,{"$f":"SUMIF(Infrastruktur!C7:C16,Infrastruktur!I2,Infrastruktur!F7:F16)","v":0},{"$f":"SUMIF(Infrastruktur!C7:C16,Infrastruktur!I3,Infrastruktur!F7:F16)","v":0},{"$f":"SUMIF(Infrastruktur!C7:C16,Infrastruktur!I4,Infrastruktur!F7:F16)","v":0},{"$f":"SUMIF(Infrastruktur!C7:C16,Infrastruktur!I5,Infrastruktur!F7:F16)","v":0},{"$f":"SUMIF(Infrastruktur!C7:C16,Infrastruktur!I6,Infrastruktur!F7:F16)","v":0},{"$f":"SUM(B18:F18)","v":0},40,{"$f":"G18*H18/100","v":0},null,{"$f":"G18*J18/100","v":0},{"$f":"I18+K18","v":0}]

{"sheet":"Flottengröße und Beschaffung","index":3,"n_rows":42,"n_cols":7,"rows_kept":42,"cut":false,"hidden":false,"merged":[[0,0,0,6],[14,0,14,6],[15,0,15,6]]}
["Bitte stellen Sie die Zusammensetzung und Größe Ihrer aktuellen Busflotte dar.\nTragen Sie dafür die entsprechende Anzahl in die untere Tabelle"]
[]
["EG-Fahrzeugklasse","Dieselbus","Batteriebus","Oberleitungsbus","Brennstoffzellenbus","Biomethanbus","Sonstige Alternativen"]
["M2"]
["M3\nbis 10,6 m"]
["M3\n10,6 m – 16 m"]
["M3\nab 16 m"]
[]
["Bitte stellen Sie Ihre aktuelle Bestandsinfrastruktur dar."]
[]
["Art der Infrastruktur","Plug-In","Pantograph","Oberleitung [Doppel km]","H2 Infrastruktur","Methan Infrastruktur","Sonstige Alternativen"]
["Anzahl"]
["Beschreibung"]
[]
["Angaben zur Beschaffungsplanung"]
["Bitte stellen Sie Ihre fahrzeugseitige Beschaffungsplanung für den Zeitraum von 2023-2025 inklusive der hier beantragten Busse dar."]
[]
["EG-Fahrzeugklasse","Dieselbus","Batteriebus","Oberleitungsbus","Brennstoffzellenbus","Biomethanbus","Sonstige Alternativen"]
["M2"]
["M3\nbis 10,6 m"]
["M3\n10,6 m – 16 m"]
["M3\nab 16 m"]
[]
["Bitte stellen Sie Ihre infrastrukturseitige Beschaffungsplanung für den Zeitraum von 2023-2025 inklusive der hier beantragten Infrastruktur dar."]
[]
["Art der Infrastruktur","Plug-In","Pantograph","Oberleitung [Doppel km]","H2 Infrastruktur","Methan Infrastruktur","Sonstige Alternativen"]
["Anzahl"]
["Beschreibung"]
[]
["Bitte stellen Sie Ihre fahrzeugseitige Beschaffungsplanung für den Zeitraum von 2026-2030 dar."]
[]
["EG-Fahrzeugklasse","Dieselbus","Batteriebus","Oberleitungsbus","Brennstoffzellenbus","Biomethanbus","Sonstige Alternativen"]
["M2"]
["M3\nbis 10,6 m"]
["M3\n10,6 m – 16 m"]
["M3\nab 16 m"]
[]
["Bitte stellen Sie Ihre infrastrukturseitige Beschaffungsplanung für den Zeitraum von 2026-2030 dar."]
[]
["Art der Infrastruktur","Plug-In","Pantograph","Oberleitung [Doppel km]","H2 Infrastruktur","Methan Infrastruktur","Sonstige Alternativen"]
["Anzahl"]
["Beschreibung"]